[Event "2017 South African Open Ch"]
[Site "Durban"]
[Date "2017.07.17"]
[Round "6"]
[White "Mazibuko, Khanya"]
[Black "Govindasamy, Nashlen"]
[Result "1/2-1/2"]
[ECO "B23"]
[WhiteElo "1808"]
[BlackElo "2087"]
[Annotator "NA RC"]
[PlyCount "135"]
[EventDate "2017.??.??"]
[EventCountry "RSA"]
[SourceTitle "playchess.com"]
[Source "ChessBase"]
[SourceQuality "1"]
[TimeControl "5400+30"]

1. e4 {[%emt 0:00:00]} c5 {[%emt 0:05:30]} 2. Nc3 {[%emt 0:01:26]} e6 {[%emt 0:00:33]} 3. f4 {[%emt 0:00:00]} Nc6 {[%emt 0:00:13]} 4. Nf3 {[%emt 0:00:12]} d5 {[%emt 0:00:37]} 5. Bb5 {[%emt 0:00:32]} Nge7 {[%emt 0:00:18]} 6. exd5 {[%emt 0:00:34]} exd5 {[%emt 0:00:13]} 7. Qe2 {[%emt 0:00:23]} f6 {[%emt 0:00:54] B23: Closed Sicilian: Lines without g3} (7... Bg4 8. O-O Qd6 9. Bxc6+ Qxc6 10. h3 Bxf3 11. Qxf3 d4 12. Ne4 f5 13. Ng5 h6 14. Qxc6+ Nxc6 15. Nf3 d3 {1-0 (41) Wang,C (2500)-Sasikiran,K (2682) Hyderabad 2015}) 8. Bxc6+ {[%emt 0:04:07]} bxc6 {[%emt 0:00:17]} 9. b3 {[%emt 0:03:18]} Kf7 {[%emt 0:05:41]} 10. O-O {[%emt 0:03:21]} Nf5 {[%emt 0:16:04]} 11. Ba3 $146 {[%emt 0:11:23]} ({Predecessor:} 11. d3 Bd6 12. Ne5+ Kg8 13. Nf3 Kf7 14. Ne5+ fxe5 15. fxe5 {0-1 (40) Bikuzhin,V (2241)-Petrov,N (2436) Moscow 2015}) 11... Nd4 {[%emt 0:10:12]} 12. Nxd4 {[%emt 0:12:24]} cxd4 {[%emt 0:00:08]} 13. Bxf8 {[%emt 0:00:34]} Rxf8 {[%emt 0:11:47]} 14. Na4 {[%emt 0:08:08]} Bf5 {[%emt 0:02:48]} 15. Qh5+ {[%emt 0:10:49]} Bg6 {[%emt 0:00:46]} 16. Qg4 {[%emt 0:00:21]} Kg8 {[%emt 0:11:27] [#]} (16... Bxc2 $11 {remains equal.} 17. Nc5 Qe7) 17. f5 $1 {[%emt 0:03:52]} Bf7 {[%emt 0:02:55]} 18. Qxd4 {[%emt 0:01:32]} Re8 {[%emt 0:01:46]} 19. Rae1 {[%emt 0:02:44]} Rxe1 {[%emt 0:00:52]} 20. Rxe1 {[%emt 0:00:02]} Qd7 {[%emt 0:00:46]} 21. Qf4 {[%emt 0:02:15]} Re8 {[%emt 0:00:43]} 22. Rxe8+ {[%emt 0:06:36]} Qxe8 {[%emt 0:01:12]} 23. Kf2 {[%emt 0:02:32]} Qe5 {[%emt 0:08:24]} 24. Qxe5 {[%emt 0:00:19]} fxe5 {[%emt 0:00:02]} 25. Nc5 {[%emt 0:00:31]} Be8 {[%emt 0:05:02]} 26. g4 {[%emt 0:04:19]} g6 {[%emt 0:02:03]} 27. Nd3 {[%emt 0:03:37]} gxf5 {[%emt 0:00:41]} 28. gxf5 {[%emt 0:00:59]} Kg7 {[%emt 0:00:57]} 29. Nxe5 {[%emt 0:03:03]} Kf6 {[%emt 0:00:04]} 30. d4 {[%emt 0:02:56]} Kxf5 {[%emt 0:00:29]} 31. Ke3 {[%emt 0:00:06]} Kg5 {[%emt 0:03:20]} 32. c4 {[%emt 0:02:24]} dxc4 {[%emt 0:00:40]} 33. bxc4 {[%emt 0:00:23]} Kf5 {[%emt 0:00:48]} 34. c5 {[%emt 0:04:30]} Kf6 {[%emt 0:05:17]} 35. Kf4 {[%emt 0:01:20]} Ke6 {[%emt 0:00:52]} 36. Ke4 {[%emt 0:00:23]} a6 {[%emt 0:00:18]} 37. a3 {[%emt 0:00:13]} a5 {[%emt 0:00:51]} 38. a4 {[%emt 0:00:11]} Kf6 {[%emt 0:00:51]} 39. Nc4 {[%emt 0:04:26]} Bg6+ {[%emt 0:00:13]} 40. Ke3 {[%emt 0:00:06]} Bc2 {[%emt 0:00:20] [#]} 41. Nb2 $1 {[%emt 0:00:05]} Ke6 {[%emt 0:00:53] [#]} 42. Kd2 $1 {[%emt 0:00:03]} Bg6 {[%emt 0:02:45]} 43. Nc4 {[%emt 0:00:15]} Kd5 {[%emt 0:00:44]} 44. Kc3 {[%emt 0:00:02]} h5 {[%emt 0:00:32]} 45. Nxa5 {[%emt 0:00:06]} Bf5 {[%emt 0:00:39]} 46. Nc4 {[%emt 0:00:46]} Ke6 {[%emt 0:00:22]} 47. Nb6 {[%emt 0:00:43]} Bh3 {[%emt 0:00:14]} 48. a5 {[%emt 0:00:08]} Bf1 {[%emt 0:00:04]} 49. Nc4 {[%emt 0:00:17]} Kd7 {[%emt 0:00:22]} 50. Ne5+ {[%emt 0:00:34]} (50. a6 $142 Kc7 51. a7 Kb7 52. Na5+ Kxa7 53. Nxc6+ Kb7 54. d5 Bb5 55. Nd4) 50... Kc7 {[%emt 0:00:19]} 51. Kd2 {[%emt 0:00:31]} Kb7 {[%emt 0:00:31]} 52. Ke1 {[%emt 0:01:03]} (52. Nd3 $142 Ka6 53. Nb4+ Kxa5 54. Nxc6+ Ka6 55. Ke3) 52... Bb5 {[%emt 0:00:34]} 53. Ng6 {[%emt 0:01:17]} Bc4 {[%emt 0:01:28]} 54. Kf2 {[%emt 0:01:29]} Ka6 {[%emt 0:00:16]} 55. Kg3 {[%emt 0:00:26]} Kxa5 {[%emt 0:00:03]} 56. Nf4 $2 {[%emt 0:00:16]} (56. Kf4 $18 {has better winning chances.} Bf1 57. Ke5) 56... Kb4 {[%emt 0:00:46]} 57. Kf3 $2 {[%emt 0:02:03]} ({Don't play} 57. Nxh5 Kc3 $11) (57. Kf2 Bf7 58. Ke2) 57... Bf7 $2 {[%emt 0:00:46]} (57... h4 {is a better chance.} 58. Ke4 Kb5) 58. Ke4 {[%emt 0:00:10]} Kc4 {[%emt 0:00:21]} 59. Ke5 {[%emt 0:00:03]} Be8 {[%emt 0:00:50]} 60. Ne6 {[%emt 0:00:32]} Bf7 {[%emt 0:00:31]} 61. Nd8 {[%emt 0:01:12]} Bd5 {[%emt 0:00:17]} 62. Kd6 {[%emt 0:00:59]} Kxd4 {[%emt 0:00:24]} 63. Nxc6+ {[%emt 0:00:11]} Ke4 {[%emt 0:00:43]} 64. Ne7 {[%emt 0:01:19]} Ba8 {[%emt 0:00:30] [#]} 65. Nc6 $2 {[%emt 0:00:34]} (65. c6 $1 $18 {[%cal Rc6c7]} Bxc6 66. Nxc6 (66. Kxc6 Kf3 $11)) 65... Kf3 {[%emt 0:00:40]} 66. Nd8 {[%emt 0:00:32]} Kg2 {[%emt 0:00:19]} 67. Ne6 {[%emt 0:00:11]} Kxh2 {[%emt 0:00:32]} 68. Nf4 $11 {[%emt 0:00:38]} 1/2-1/2

[Event "2017 South African Open Ch"]
[Site "Durban"]
[Date "2017.07.17"]
[Round "6"]
[White "Southey, Andrew M"]
[Black "Oberholzer, Francois"]
[Result "0-1"]
[ECO "A08"]
[WhiteElo "1807"]
[BlackElo "2046"]
[Annotator "NA RC"]
[PlyCount "54"]
[EventDate "2017.??.??"]
[EventCountry "RSA"]
[SourceTitle "playchess.com"]
[Source "ChessBase"]
[SourceQuality "1"]
[TimeControl "5400+30"]

1. e4 {[%emt 0:00:00]} c5 {[%emt 0:00:26]} 2. Nf3 {[%emt 0:00:00]} e6 {[%emt 0:00:38]} 3. d3 Nc6 {[%emt 0:01:42]} 4. g3 {[%emt 0:00:22]} d5 {[%emt 0:04:56]} 5. Nbd2 {[%emt 0:00:27]} Nf6 {[%emt 0:03:32]} 6. Bg2 {[%emt 0:00:25]} Be7 {[%emt 0:00:16]} 7. O-O {[%emt 0:00:32]} O-O {[%emt 0:02:39]} 8. Re1 {[%emt 0:00:36]} b5 {[%emt 0:01:13]} 9. e5 {[%emt 0:00:42]} Nd7 {[%emt 0:00:20]} 10. h4 {[%emt 0:00:49]} f6 {[%emt 0:08:02] C00: French: Unusual White 2nd moves} (10... Bb7 11. Nf1 b4 12. N1h2 Qc7 13. Bf4 Rfc8 14. Ng4 Qd8 15. h5 h6 16. Qd2 Bf8 17. c4 bxc3 18. bxc3 {0-1 (68) Zakhartsov,V (2452)-Matlakov,M (2691) Sochi 2016}) 11. exf6 {[%emt 0:00:26]} Nxf6 {[%emt 0:00:19]} 12. Nf1 {[%emt 0:01:22]} Ng4 $146 {[%emt 0:05:50]} ({Predecessor:} 12... Rb8 13. Bf4 Bd6 14. Bxd6 Qxd6 15. Qe2 h6 16. Ne5 Nxe5 17. Qxe5 Qxe5 18. Rxe5 {½-½ (32) Guillermo Gonzalez,A (1570)-Cruz Diaz,F (1619) Santa Cruz de Tenerife 2016}) 13. Bg5 {[%emt 0:19:36]} h6 {[%emt 0:14:18]} 14. Bxe7 {[%emt 0:05:27]} Qxe7 {[%emt 0:03:34]} 15. N1h2 {[%emt 0:02:22]} e5 {[%emt 0:07:09]} 16. Nxe5 {[%emt 0:09:05]} Ngxe5 {[%emt 0:00:27]} 17. f4 {[%emt 0:05:22]} Qf7 {[%emt 0:07:05]} 18. fxe5 {[%emt 0:01:19]} Qf2+ {[%emt 0:00:07]} 19. Kh1 {[%emt 0:00:04]} Be6 {[%emt 0:00:11]} 20. Nf1 {[%emt 0:04:37] [#]} Nd4 $1 {[%emt 0:07:39]} 21. Re3 {[%emt 0:09:07]} (21. Rc1 $17) 21... Qxc2 {[%emt 0:04:38]} 22. Qh5 {[%emt 0:02:36]} Rf2 {[%emt 0:02:31]} 23. Rf3 {[%emt 0:06:14]} Rxg2 {[%emt 0:01:47]} 24. Rf6 {[%emt 0:00:08]} Qe2 {[%emt 0:05:41]} 25. Qg6 {[%emt 0:00:36]} Rf2 $19 {[%emt 0:01:00]} (25... Rf8 $142 26. Rb1 Bf7 27. Re1 Qxe1 28. Qxg7+ Kxg7 29. Kxg2 Qxe5 30. Rf2 Bg6 31. Rxf8 Kxf8 32. Nh2 Qe2+ 33. Kh3 Qf2 34. b3 Ne2 35. Nf1 Ng1+ 36. Kg4 Qf5#) 26. Rc1 {[%emt 0:05:56]} Nf3 {[%emt 0:02:42]} 27. Rxf3 {[%emt 0:00:17]} Qxf3+ {[%emt 0:00:08]} 0-1

[Event "2017 South African Open Ch"]
[Site "Durban"]
[Date "2017.07.17"]
[Round "6"]
[White "Essa, Naseem Ahmed"]
[Black "Bhawoodien, Shabir Hussain"]
[Result "0-1"]
[ECO "A15"]
[WhiteElo "1682"]
[BlackElo "2066"]
[Annotator "NA RC"]
[PlyCount "70"]
[EventDate "2017.??.??"]
[EventCountry "RSA"]
[SourceTitle "playchess.com"]
[Source "ChessBase"]
[SourceQuality "1"]
[TimeControl "5400+30"]

1. c4 {[%emt 0:00:00]} Nf6 {[%emt 0:07:47]} 2. g3 {[%emt 0:00:00]} g6 {[%emt 0:00:05]} 3. Bg2 {[%emt 0:00:11]} Bg7 {[%emt 0:00:02]} 4. Nc3 {[%emt 0:00:24]} O-O {[%emt 0:00:18]} 5. e4 {[%emt 0:00:30]} d6 {[%emt 0:00:07]} 6. Nge2 {[%emt 0:00:11]} c5 {[%emt 0:02:44]} 7. O-O {[%emt 0:00:11]} Nc6 {[%emt 0:00:03]} 8. a3 {[%emt 0:00:13]} a5 {[%emt 0:01:42] A36: Symmetrical English vs ...g6: 4 Bg2 Bg7} 9. d3 {[%emt 0:01:59]} Ne8 {[%emt 0:03:26]} 10. f4 {[%emt 0:04:21]} Nc7 $146 {[%emt 0:05:26]} ({Predecessor:} 10... Bg4 11. h3 Bxe2 12. Nxe2 Nc7 13. Rb1 Ne6 14. Kh2 Ned4 15. Nc3 Rb8 16. Be3 b5 17. cxb5 Nxb5 18. e5 Nbd4 19. Qa4 Rc8 20. exd6 exd6 21. f5 {0-1 (51) Bercys,S (2427)-Kiewra,K (2311) Mesa 2010}) 11. f5 {[%emt 0:23:11]} Nd4 {[%emt 0:07:50]} 12. Nxd4 {[%emt 0:04:24]} cxd4 {[%emt 0:03:13]} 13. Ne2 {[%emt 0:00:50]} Bd7 {[%emt 0:06:30]} 14. Bg5 {[%emt 0:51:17]} b5 {[%emt 0:10:19]} 15. cxb5 {[%emt 0:03:59]} Bxb5 {[%emt 0:00:41]} 16. g4 {[%emt 0:00:07]} d5 {[%emt 0:02:54]} (16... Qd7 $11 {remains equal.}) 17. Bf4 {[%emt 0:02:52]} dxe4 {[%emt 0:06:57]} 18. Bxc7 {[%emt 0:02:27]} Qxc7 {[%emt 0:00:05]} 19. Bxe4 {[%emt 0:00:05]} Rab8 $15 {[%emt 0:01:36]} 20. Nf4 {[%emt 0:00:13]} Qd6 {[%emt 0:04:33]} 21. Qf3 {[%emt 0:01:12]} Be5 {[%emt 0:01:45]} 22. Rab1 {[%emt 0:01:18]} Ba4 {[%emt 0:00:35]} 23. b4 {[%emt 0:00:43]} axb4 {[%emt 0:10:25]} 24. axb4 {[%emt 0:00:05]} Bxf4 {[%emt 0:03:36]} 25. Qxf4 {[%emt 0:00:05]} Qxf4 {[%emt 0:02:24]} 26. Rxf4 {[%emt 0:00:05]} g5 {[%emt 0:00:01]} 27. Rf2 {[%emt 0:00:39]} Rfc8 {[%emt 0:00:02]} 28. Ra2 {[%emt 0:01:14]} Bb5 {[%emt 0:00:23]} 29. Ra7 {[%emt 0:00:34]} Kf8 {[%emt 0:02:02]} 30. Ra3 {[%emt 0:00:30]} Rc2 {[%emt 0:00:47]} 31. Rba1 {[%emt 0:00:51]} Kg7 {[%emt 0:00:29]} 32. Ra8 {[%emt 0:00:26]} Rxa8 {[%emt 0:02:54]} 33. Rxa8 {[%emt 0:00:05]} Rb2 34. Kf1 {[%emt 0:01:14]} Rxb4 {[%emt 0:00:40]} 35. Rb8 {[%emt 0:00:20]} Bxd3+ {[%emt 0:00:07]} 0-1

[Event "2017 South African Open Ch"]
[Site "Durban"]
[Date "2017.07.17"]
[Round "6"]
[White "Hattingh, Krishna"]
[Black "Zwakala, Ntando"]
[Result "0-1"]
[ECO "E12"]
[WhiteElo "1608"]
[BlackElo "2020"]
[Annotator "NA RC"]
[PlyCount "104"]
[EventDate "2017.??.??"]
[EventCountry "RSA"]
[SourceTitle "playchess.com"]
[Source "ChessBase"]
[SourceQuality "1"]
[TimeControl "5400+30"]

1. d4 {[%emt 0:00:00]} Nf6 {[%emt 0:00:10]} 2. c4 {[%emt 0:00:00]} e6 {[%emt 0:00:07]} 3. Nf3 {[%emt 0:00:00]} b6 {[%emt 0:00:49]} 4. a3 {[%emt 0:00:14]} Bb7 {[%emt 0:00:41]} 5. Nc3 {[%emt 0:00:06]} d5 {[%emt 0:00:33]} 6. Bg5 {[%emt 0:00:36]} Be7 {[%emt 0:01:11]} 7. e3 {[%emt 0:03:51]} Nbd7 {[%emt 0:01:08]} 8. cxd5 {[%emt 0:01:12]} exd5 {[%emt 0:00:45]} 9. Bd3 {[%emt 0:01:20]} O-O {[%emt 0:00:20]} 10. Rc1 {[%emt 0:01:22]} c5 {[%emt 0:02:19]} 11. O-O {[%emt 0:02:21]} h6 {[%emt 0:01:20]} 12. Bh4 {[%emt 0:01:07]} Ne4 {[%emt 0:03:15]} 13. Bxe7 {[%emt 0:02:53]} Qxe7 {[%emt 0:00:10]} 14. dxc5 {[%emt 0:01:28] E12: Queen's Indian: Unusual White 4th moves, 4 a3, 4 Nc3 Bb7 5 a3 and 4 Nc3 Bb7} Nxc3 {[%emt 0:02:10]} 15. Rxc3 {[%emt 0:01:01]} bxc5 {[%emt 0:00:21] [#]} 16. b3 $146 {[%emt 0:03:18]} ({Predecessor:} 16. Bb1 Rfd8 17. Qc2 g6 18. Qa4 Qf6 19. Qg4 h5 20. Qg3 d4 21. exd4 cxd4 {½-½ (64) Indjic,A (2542)-Li,R (2486) Dallas 2016}) 16... Qf6 {[%emt 0:01:55]} 17. Rc1 {[%emt 0:03:51]} Rac8 {[%emt 0:00:44]} 18. Qe2 {[%emt 0:01:52]} Rfe8 {[%emt 0:04:35]} 19. Rc2 {[%emt 0:01:26]} Nb6 {[%emt 0:02:25]} 20. Nd2 {[%emt 0:02:41]} d4 {[%emt 0:05:38]} 21. Qg4 {[%emt 0:05:56]} dxe3 {[%emt 0:06:06]} 22. fxe3 {[%emt 0:00:02]} Qe5 {[%emt 0:00:37]} 23. Re1 {[%emt 0:01:20]} Rcd8 {[%emt 0:05:20]} 24. Bb5 {[%emt 0:03:27]} Re6 {[%emt 0:03:22]} 25. Nf3 {[%emt 0:02:16]} Qd6 {[%emt 0:03:33]} 26. Nh4 {[%emt 0:08:08]} Re4 {[%emt 0:09:44]} 27. Qg3 {[%emt 0:00:31]} Qe6 {[%emt 0:03:34]} 28. Qc7 {[%emt 0:05:02]} (28. Rf2 $5 {[%cal Rh4f5]} Qe5 29. Qxe5 Rxe5 30. Nf3 $11) 28... Rc8 {[%emt 0:07:36]} 29. Qxb7 {[%emt 0:01:37]} Rxh4 {[%emt 0:00:21]} 30. Bc4 {[%emt 0:06:22]} (30. Rf2 $11) 30... Nxc4 {[%emt 0:03:26]} 31. Rxc4 {[%emt 0:00:35]} Rxc4 {[%emt 0:00:26]} 32. bxc4 {[%emt 0:00:02]} Rd8 {[%emt 0:01:45]} 33. Qc7 {[%emt 0:05:13]} Rd2 {[%emt 0:04:07]} 34. Qxc5 $15 {[%emt 0:05:13]} Qe4 {[%emt 0:04:09]} 35. Qc8+ {[%emt 0:00:20]} Kh7 {[%emt 0:00:06]} 36. Qh3 {[%emt 0:00:07]} Qxc4 {[%emt 0:00:11]} 37. Qf5+ {[%emt 0:02:20]} g6 {[%emt 0:00:57]} 38. Qf6 {[%emt 0:02:33]} Qa2 {[%emt 0:02:22]} 39. Qf3 {[%emt 0:01:21]} Rd3 {[%emt 0:02:30]} 40. Re2 {[%emt 0:01:16]} Qe6 {[%emt 0:01:20]} 41. Rf2 {[%emt 0:01:43]} Kg7 {[%emt 0:00:46]} 42. Qe2 {[%emt 0:07:17]} Rxe3 {[%emt 0:02:52]} 43. Qb2+ {[%emt 0:01:16]} Kh7 {[%emt 0:02:24]} 44. h3 {[%emt 0:00:47]} Re1+ {[%emt 0:00:18]} 45. Kh2 {[%emt 0:00:09]} Qd6+ {[%emt 0:00:11]} 46. g3 {[%emt 0:00:42]} Qd5 {[%emt 0:00:12]} 47. Rg2 {[%emt 0:00:58]} Qd1 {[%emt 0:00:15]} 48. g4 {[%emt 0:02:39]} Rh1+ {[%emt 0:01:47]} 49. Kg3 {[%emt 0:00:04]} Qd3+ {[%emt 0:00:18]} 50. Kf4 {[%emt 0:02:49]} g5+ {[%emt 0:00:21]} 51. Ke5 {[%emt 0:00:06]} Re1+ {[%emt 0:00:17]} 52. Kf6 {[%emt 0:00:14]} Qf3# {[%emt 0:00:15] Ke5} 0-1

[Event "2017 South African Open Ch"]
[Site "Durban"]
[Date "2017.07.18"]
[Round "7"]
[White "Solomons, Deon"]
[Black "Subke, Jason James"]
[Result "1-0"]
[ECO "A06"]
[WhiteElo "2120"]
[BlackElo "1932"]
[Annotator "NA"]
[PlyCount "73"]
[EventDate "2017.??.??"]
[EventCountry "RSA"]
[SourceTitle "playchess.com"]
[Source "ChessBase"]
[SourceQuality "1"]
[TimeControl "5400+30"]

1. Nf3 {[%emt 0:00:00]} d5 {[%emt 0:00:38]} 2. g3 {[%emt 0:01:13]} Nf6 {[%emt 0:00:37]} 3. Bg2 {[%emt 0:00:05]} c6 {[%emt 0:00:25]} 4. O-O {[%emt 0:00:47]} Bf5 {[%emt 0:00:12]} 5. d3 {[%emt 0:00:24]} Nbd7 {[%emt 0:00:57]} 6. Nbd2 {[%emt 0:00:11]} e5 {[%emt 0:00:20]} 7. Qe1 {[%emt 0:06:08]} Bg6 {[%emt 0:01:18]} 8. e4 {[%emt 0:00:37]} dxe4 {[%emt 0:00:26]} 9. dxe4 {[%emt 0:00:10]} Bc5 {[%emt 0:01:26]} 10. Nh4 {[%emt 0:00:26]} Qe7 {[%emt 0:02:56]} 11. a4 {[%emt 0:04:41]} O-O {[%emt 0:00:41]} 12. Nb3 {[%emt 0:00:56]} Bd6 {[%emt 0:00:47]} 13. Bg5 {[%emt 0:02:39]} Qe6 {[%emt 0:02:49]} 14. Qe2 {[%emt 0:10:07]} Nc5 {[%emt 0:02:28]} 15. Nd2 {[%emt 0:04:21]} a5 {[%emt 0:01:54]} 16. f3 {[%emt 0:04:39]} Rfe8 {[%emt 0:03:27]} 17. Rfd1 {[%emt 0:03:23]} Rad8 {[%emt 0:01:42]} 18. Bf1 {[%emt 0:00:45]} Bc7 {[%emt 0:02:13]} 19. Qf2 {[%emt 0:02:07]} b6 {[%emt 0:03:30]} 20. Be2 {[%emt 0:02:57]} Rd7 {[%emt 0:01:35]} 21. Be3 {[%emt 0:00:28]} Red8 {[%emt 0:03:26]} 22. Nxg6 {[%emt 0:00:49]} hxg6 {[%emt 0:00:37]} 23. b3 {[%emt 0:00:42]} Qe7 {[%emt 0:03:44]} 24. Nc4 {[%emt 0:00:55]} Rxd1+ {[%emt 0:01:23]} 25. Rxd1 {[%emt 0:00:04]} Rxd1+ {[%emt 0:00:09]} 26. Bxd1 {[%emt 0:00:05]} Nfd7 {[%emt 0:01:17]} 27. Qd2 {[%emt 0:00:29]} Qe6 {[%emt 0:01:24]} 28. Be2 {[%emt 0:01:19]} Kh7 {[%emt 0:01:47]} 29. Bf1 {[%emt 0:04:14]} f5 {[%emt 0:02:08]} 30. Bh3 {[%emt 0:01:41]} Qf6 {[%emt 0:06:05]} 31. Bg5 {[%emt 0:03:58]} Qe6 {[%emt 0:00:28]} 32. Ne3 {[%emt 0:00:43]} Qf7 {[%emt 0:03:36]} 33. exf5 {[%emt 0:02:18]} gxf5 {[%emt 0:00:14]} 34. Bxf5+ {[%emt 0:05:18]} g6 {[%emt 0:00:18]} 35. Bxd7 {[%emt 0:00:46]} Nxd7 {[%emt 0:00:32]} 36. Ng4 {[%emt 0:00:22]} Qf5 {[%emt 0:04:39]} 37. Qxd7+ 1-0

[Event "2017 South African Open Ch"]
[Site "Durban"]
[Date "2017.07.18"]
[Round "7"]
[White "Bhawoodien, Mohamed Ozayr"]
[Black "Pon, Matt"]
[Result "1/2-1/2"]
[ECO "E90"]
[WhiteElo "2103"]
[BlackElo "2163"]
[Annotator "NA"]
[PlyCount "76"]
[EventDate "2017.??.??"]
[EventCountry "RSA"]
[SourceTitle "playchess.com"]
[Source "ChessBase"]
[SourceQuality "1"]
[TimeControl "5400+30"]

1. d4 {[%emt 0:03:26]} Nf6 {[%emt 0:00:27]} 2. c4 {[%emt 0:00:18]} g6 {[%emt 0:00:14]} 3. Nc3 {[%emt 0:00:15]} Bg7 {[%emt 0:00:20]} 4. e4 {[%emt 0:00:46]} d6 {[%emt 0:00:17]} 5. Nf3 {[%emt 0:00:06]} O-O {[%emt 0:00:19]} 6. h3 {[%emt 0:00:04]} e5 {[%emt 0:01:35]} 7. d5 {[%emt 0:00:11]} a5 {[%emt 0:02:02]} 8. Bg5 {[%emt 0:00:14]} Na6 {[%emt 0:02:56]} 9. Nd2 {[%emt 0:00:22]} Qe8 {[%emt 0:01:47]} 10. Be2 {[%emt 0:00:08]} Nd7 {[%emt 0:01:41]} 11. a3 {[%emt 0:00:34] E92: King's Indian: Classical: 6 Be2 e5: 7 dxe5, 7 Be3 and Petrosian System without 7...Nbd7} h6 {[%emt 0:05:50]} 12. Bh4 {[%emt 0:01:45]} Nac5 $146 {[%emt 0:01:55]} ({Predecessor:} 12... Nb6 13. g4 a4 14. f3 Nc5 15. Qc2 c6 16. Bf2 Bd7 17. O-O-O cxd5 18. exd5 f5 {1-0 (51) Movsesian,S (2698)-Grischuk,A (2763) Istanbul 2012}) 13. b4 {[%emt 0:03:27]} axb4 {[%emt 0:01:02]} 14. axb4 {[%emt 0:00:05]} Rxa1 {[%emt 0:00:19]} 15. Qxa1 {[%emt 0:00:05]} Na6 {[%emt 0:00:14]} 16. Qa3 {[%emt 0:05:36]} f5 {[%emt 0:05:47]} 17. f3 {[%emt 0:00:22]} Bf6 {[%emt 0:01:04]} 18. Bf2 {[%emt 0:01:36]} Qe7 {[%emt 0:04:48]} 19. Nb3 {[%emt 0:05:22]} Bh4 {[%emt 0:04:43]} 20. g3 {[%emt 0:00:19]} Bf6 {[%emt 0:00:19]} 21. c5 {[%emt 0:03:24]} Nab8 {[%emt 0:02:45]} 22. Qa4 {[%emt 0:16:55]} (22. h4 $16) 22... f4 {[%emt 0:01:23]} 23. h4 {[%emt 0:04:31]} fxg3 {[%emt 0:00:27]} 24. Bxg3 {[%emt 0:00:05]} dxc5 {[%emt 0:04:24]} 25. Bc4 {[%emt 0:18:31]} Kh7 {[%emt 0:06:13]} 26. bxc5 {[%emt 0:00:37]} Nxc5 {[%emt 0:00:35]} 27. Nxc5 {[%emt 0:00:22]} Qxc5 {[%emt 0:00:05]} 28. Bf2 {[%emt 0:00:10]} Qe7 {[%emt 0:00:15]} 29. h5 {[%emt 0:05:48]} g5 {[%emt 0:00:39]} 30. Bf1 {[%emt 0:00:51]} Bg7 {[%emt 0:00:21]} 31. Bh3 {[%emt 0:01:37]} Bxh3 {[%emt 0:01:18]} ({Weaker is} 31... Rxf3 32. Bxc8 Rxc3 33. O-O $11) 32. Rxh3 {[%emt 0:00:01]} Nd7 {[%emt 0:03:52]} 33. Nd1 {[%emt 0:03:27] [#]} Rf6 {[%emt 0:01:21]} (33... c6 $142 $1 {[%mdl 512]} 34. Qc4 (34. dxc6 Qe6) 34... cxd5 35. exd5 Kh8) 34. Kf1 {[%emt 0:02:16]} (34. Qb3 $17) 34... Nb6 {[%emt 0:00:20]} (34... Qf7 $17 35. Ne3 Ra6) 35. Qc2 {[%emt 0:01:24]} Qd7 {[%emt 0:00:49]} 36. Kg2 {[%emt 0:02:45]} Nc8 {[%emt 0:02:14]} 37. Ne3 $11 {[%emt 0:00:43]} Ra6 {[%emt 0:00:04]} 38. Rh1 {[%emt 0:00:56]} Rf6 {[%emt 0:01:09]} 1/2-1/2

[Event "2017 South African Open Ch"]
[Site "Durban"]
[Date "2017.07.18"]
[Round "7"]
[White "Govindasamy, Nashlen"]
[Black "Mpya, Tshediso M"]
[Result "0-1"]
[ECO "D11"]
[WhiteElo "2087"]
[BlackElo "1897"]
[Annotator "NA RC"]
[PlyCount "108"]
[EventDate "2017.??.??"]
[EventCountry "RSA"]
[SourceTitle "playchess.com"]
[Source "ChessBase"]
[SourceQuality "1"]
[TimeControl "5400+30"]

1. d4 {[%emt 0:10:19]} d5 {[%emt 0:00:10]} 2. c4 {[%emt 0:00:09]} c6 {[%emt 0:00:06]} 3. Nf3 {[%emt 0:00:06]} Nf6 {[%emt 0:00:07]} 4. e3 {[%emt 0:00:07]} a6 {[%emt 0:00:26]} 5. Nbd2 {[%emt 0:07:23]} Bg4 {[%emt 0:01:17] D11: Slav Defence: 3 Nf3 sidelines and 3...Nf6 4 e3 Bg4} (5... Bf5 6. Nh4 Be4 7. Qb3 Ra7 8. Nxe4 dxe4 9. Nf5 e6 10. Ng3 c5 11. dxc5 Nbd7 12. Qa4 Bxc5 13. Bd2 O-O {½-½ (31) Kovalyov,A (2643)-Erenburg,S (2550) Medellin 2017}) 6. h3 {[%emt 0:11:34]} Bf5 {[%emt 0:00:43]} 7. Be2 {[%emt 0:00:52]} h6 $146 {[%emt 0:00:17]} ({Predecessor:} 7... e6 8. O-O Nbd7 9. Nh4 Bg6 10. Nxg6 hxg6 11. b3 Bd6 12. Bb2 Qe7 13. Qc2 {1-0 (40) Elkin,L (2191)-Gagic,M (1880) Budva 2009}) 8. O-O {[%emt 0:00:21]} e6 {[%emt 0:00:09]} 9. Ne5 {[%emt 0:06:18]} Bd6 {[%emt 0:03:08]} 10. f4 {[%emt 0:01:56]} O-O {[%emt 0:02:20]} 11. c5 {[%emt 0:00:58]} Bc7 {[%emt 0:00:14]} 12. b4 {[%emt 0:07:59]} Ne4 {[%emt 0:00:24]} 13. Nxe4 {[%emt 0:10:10]} Bxe4 {[%emt 0:00:12]} 14. Bd2 {[%emt 0:01:04]} f6 {[%emt 0:00:15]} 15. Ng4 {[%emt 0:01:14]} Nd7 {[%emt 0:00:51]} 16. a4 {[%emt 0:03:00]} Qe8 {[%emt 0:01:31]} 17. Nf2 {[%emt 0:03:55]} Bg6 {[%emt 0:00:17]} 18. b5 {[%emt 0:05:23]} e5 {[%emt 0:00:37]} 19. bxc6 {[%emt 0:01:47]} bxc6 {[%emt 0:00:03]} 20. Bg4 {[%emt 0:00:28]} f5 {[%emt 0:06:18]} 21. Bf3 {[%emt 0:03:26]} exf4 {[%emt 0:00:12]} 22. exf4 {[%emt 0:00:04]} Nf6 {[%emt 0:00:13]} 23. Nd3 {[%emt 0:01:22]} Ne4 {[%emt 0:00:21]} 24. Ne5 {[%emt 0:03:44]} Bxe5 {[%emt 0:00:09]} 25. fxe5 {[%emt 0:00:24]} Rb8 {[%emt 0:01:12]} 26. Be2 {[%emt 0:05:00]} Rb2 {[%emt 0:03:54]} 27. Be1 {[%emt 0:00:15]} Qe7 {[%emt 0:00:28]} 28. Rb1 {[%emt 0:10:54]} Rfb8 {[%emt 0:00:16]} 29. Rxb2 {[%emt 0:00:07]} Rxb2 {[%emt 0:00:09]} 30. Bf3 {[%emt 0:00:56]} Qg5 {[%emt 0:03:34]} 31. Bxe4 {[%emt 0:01:29]} fxe4 {[%emt 0:00:04]} 32. Rf2 $1 {[%emt 0:00:47]} Rb8 {[%emt 0:00:34]} 33. Qg4 {[%emt 0:02:13]} (33. Rf1 $15) 33... Qxg4 {[%emt 0:09:55]} 34. hxg4 {[%emt 0:00:01]} Rb1 {[%emt 0:00:24]} 35. Rf1 {[%emt 0:01:02]} e3 {[%emt 0:02:07]} 36. Bh4 {[%emt 0:00:30]} Rb2 {[%emt 0:01:37]} 37. Re1 {[%emt 0:00:40]} Be4 {[%emt 0:00:46]} 38. Rxe3 {[%emt 0:00:18]} Rxg2+ {[%emt 0:00:08]} 39. Kf1 {[%emt 0:00:18]} Rxg4 {[%emt 0:00:10]} 40. Bf2 {[%emt 0:00:25]} Kf7 {[%emt 0:01:31]} 41. Rg3 $2 {[%emt 0:00:22]} (41. Ke2 $17) 41... Rxg3 {[%emt 0:01:09]} 42. Bxg3 {[%emt 0:00:02]} g5 {[%emt 0:00:11]} 43. Be1 {[%emt 0:00:35]} Bf5 {[%emt 0:00:14]} 44. Kf2 {[%emt 0:00:34]} h5 {[%emt 0:00:21]} 45. Bd2 {[%emt 0:00:29]} Kg6 {[%emt 0:00:08]} 46. Ba5 {[%emt 0:00:21]} h4 {[%emt 0:00:14]} 47. Bd8 {[%emt 0:00:09]} Kh5 {[%emt 0:00:10]} 48. a5 $19 {[%emt 0:00:49]} g4 {[%emt 0:00:18]} 49. Kg2 {[%emt 0:00:44]} g3 {[%emt 0:00:10]} 50. e6 {[%emt 0:00:36]} Bxe6 {[%emt 0:00:07]} 51. Kf3 {[%emt 0:01:05]} Bf5 {[%emt 0:00:22]} 52. Bc7 {[%emt 0:00:08]} Be4+ {[%emt 0:00:02]} 53. Ke2 {[%emt 0:00:30]} Kg4 {[%emt 0:00:09]} 54. Bd6 {[%emt 0:01:01]} h3 0-1